fUST/lending_fUST_20251126
["ID","MTS","AMOUNT","RATE_DAILY","PERIOD"]
[394911780,1764111039553,-561.56,0.0001178,2]
[394911781,1764111039562,-500.0,0.0001178,2]
[394911782,1764111039572,-500.0,0.0001178,2]
[394911783,1764111039582,-500.0,0.0001178,2]
[394911784,1764111039591,-872.56,0.0001178,2]
[394911785,1764111039600,-500.0,0.0001178,2]
[394911786,1764111039609,-500.0,0.0001178,2]
[394911787,1764111039618,-500.0,0.0001178,2]
[394911788,1764111039627,-500.0,0.0001178,2]
[394911789,1764111039637,-182.85604116,0.0001178,2]
[394911790,1764111039646,-732.4,0.0001178,2]
[394911791,1764111039655,-500.0,0.0001178,2]
[394911792,1764111039665,-151.0,0.0001178,2]
[394911793,1764111039674,-151.0,0.0001178,2]
[394911794,1764111039685,-2395.33,0.0001178,2]
[394911795,1764111039695,-785.28,0.0001178,2]
[394911796,1764111039705,-500.0,0.0001178,2]
[394911797,1764111039715,-500.0,0.0001178,2]
[394911798,1764111039724,-530.7,0.0001178,2]
[394911799,1764111039733,-500.0,0.0001178,2]
[394911800,1764111039742,-500.0,0.0001178,2]
[394911801,1764111039751,-500.0,0.0001178,2]
[394911802,1764111039761,-1239.2,0.0001178,2]
[394911803,1764111039770,-916.3,0.0001178,2]
[394911804,1764111039779,-500.0,0.0001178,2]
[394911805,1764111039788,-635.04,0.0001178,2]
[394911806,1764111039797,-213.995865,0.0001178,2]
[394911807,1764111039806,-1208.12,0.0001178,2]
[394911808,1764111039815,-213.995865,0.0001178,2]
[394911809,1764111039825,-213.995865,0.0001178,2]
[394911810,1764111039834,-500.0,0.0001178,2]
[394911811,1764111039843,-213.995865,0.0001178,2]
[394911812,1764111039854,-914.18,0.0001178,2]
[394911813,1764111039863,-500.0,0.0001178,2]
[394911814,1764111039872,-151.0,0.0001178,2]
[394911815,1764111039881,-151.0,0.0001178,2]
[394911816,1764111039891,-877.29,0.0001178,2]
[394911817,1764111039900,-1968.44,0.0001178,2]
[394911818,1764111039909,-500.0,0.0001178,2]
[394911819,1764111039917,-151.0,0.0001178,2]
[394911820,1764111039927,-619.62,0.0001178,2]
[394911821,1764111039936,-151.0,0.0001178,2]
[394911822,1764111039945,-500.0,0.0001178,2]
[394911823,1764111039954,-500.0,0.0001178,2]
[394911824,1764111039964,-409.923735,0.0001178,2]
[394911825,1764111039973,-1411.67,0.0001178,2]
[394911826,1764111039983,-409.923735,0.0001178,2]
[394911827,1764111039992,-1474.4,0.0001178,2]
[394911828,1764111040001,-409.923735,0.0001178,2]
[394911830,1764111040010,-409.923735,0.0001178,2]
[394911831,1764111040019,-2633.69,0.0001178,2]
[394911832,1764111040028,-1314.58,0.0001178,2]
[394911833,1764111040039,-500.0,0.0001178,2]
[394911834,1764111040048,-585.33,0.0001178,2]
[394911835,1764111040058,-500.0,0.0001178,2]
[394911836,1764111040067,-500.0,0.0001178,2]
[394911837,1764111040077,-500.0,0.0001178,2]
[394911838,1764111040086,-695.08,0.0001178,2]
[394911839,1764111040095,-500.0,0.0001178,2]
[394911840,1764111040104,-921.42,0.0001178,2]
[394911841,1764111040113,-520.61,0.0001178,2]
[394911842,1764111040122,-500.0,0.0001178,2]
[394911843,1764111040131,-1286.66,0.0001178,2]
[394911844,1764111040140,-1185.33,0.0001178,2]
[394911845,1764111040150,-500.0,0.0001178,2]
[394911847,1764111040159,-642.41,0.0001178,2]
[394911849,1764111040168,-527.97,0.0001178,2]
[394911850,1764111040177,-500.0,0.0001178,2]
[394911851,1764111040186,-500.0,0.0001178,2]
[394911852,1764111040194,-500.0,0.0001178,2]
[394911853,1764111040203,-2400.53,0.0001178,2]
[394911854,1764111040211,-464.78649538,0.0001178,2]
[394911855,1764111040220,-500.0,0.0001178,2]
[394911856,1764111040230,-1243.78,0.0001178,2]
[394911857,1764111040241,-5912.43,0.0001178,2]
[394911858,1764111040250,-500.0,0.0001178,2]
[394911859,1764111040258,-1275.83,0.0001178,2]
[394911860,1764111040267,-500.0,0.0001178,2]
[394911861,1764111040277,-555.12,0.0001178,2]
[394911862,1764111040286,-287.028853,0.0001178,2]
[394911863,1764111040294,-500.0,0.0001178,2]
[394911864,1764111040303,-500.0,0.0001178,2]
[394911865,1764111040312,-611.83,0.0001178,2]
[394911867,1764111040323,-500.0,0.0001178,2]
[394911869,1764111040333,-151.0,0.0001178,2]
[394911871,1764111040343,-500.0,0.0001178,2]
[394911873,1764111040352,-526.04,0.0001178,2]
[394911875,1764111040360,-500.0,0.0001178,2]
[394911877,1764111040369,-1015.51,0.0001178,2]
[394911878,1764111040379,-610.2,0.0001178,2]
[394911880,1764111040390,-500.0,0.0001178,2]
[394911882,1764111040400,-924.7,0.0001178,2]
[394911885,1764111040410,-500.0,0.0001178,2]
[394911887,1764111040421,-297.86892932,0.0001178,2]
[394911888,1764111040432,-765.82,0.0001178,2]
[394911891,1764111040441,-500.0,0.0001178,2]
[394911893,1764111040451,-500.0,0.0001178,2]
[394911894,1764111040461,-500.0,0.0001178,2]
[394911896,1764111040471,-500.0,0.0001178,2]
[394911898,1764111040481,-749.46,0.0001178,2]
[394911900,1764111040491,-1524.38,0.0001178,2]
[394911902,1764111040501,-500.0,0.0001178,2]
[394911904,1764111040509,-500.0,0.0001178,2]
[394911906,1764111040518,-1342.85,0.0001178,2]
[394911908,1764111040528,-500.0,0.0001178,2]
[394911910,1764111040536,-500.0,0.0001178,2]
[394911912,1764111040545,-500.0,0.0001178,2]
[394911914,1764111040554,-1423.3254123,0.00011784,2]
[394911916,1764111040563,-151.0,0.00011917,2]
[394911918,1764111040572,-500.0,0.00012047,2]
[394911920,1764111040581,-151.0,0.00012054,2]
[394911922,1764111040594,-500.0,0.00012054,2]
[394911924,1764111040603,-500.0,0.00012054,2]
[394911926,1764111040613,-362.14039169,0.00012054,2]
[394911928,1764111040623,-500.0,0.00012054,2]
[394911930,1764111040631,-1339.09,0.00012054,2]
[394911932,1764111040641,-500.0,0.00012054,2]
[394911934,1764111040650,-678.46,0.00012054,2]
[394911936,1764111040659,-500.0,0.00012054,2]
[394911938,1764111040669,-291.13320076,0.00012054,2]
[394911940,1764111040679,-500.0,0.00012054,2]
[394911942,1764111040688,-500.0,0.00012054,2]
[394911943,1764111040697,-500.0,0.00012054,2]
[394911947,1764111040706,-596.9385193,0.00012054,2]
[394911949,1764111040716,-336.67391565,0.00012054,2]
[394911951,1764111040725,-882.9,0.00012054,2]
[394911953,1764111040734,-500.0,0.00012054,2]
[394911954,1764111040743,-634.15,0.00012054,2]
[394911956,1764111040753,-500.0,0.00012054,2]
[394911958,1764111040762,-500.0,0.00012054,2]
[394911960,1764111040771,-500.0,0.00012054,2]
[394911962,1764111040781,-687.25,0.00012054,2]
[394911964,1764111040790,-554.36,0.00012054,2]
[394911966,1764111040799,-672.76,0.00012054,2]
[394911968,1764111040809,-500.0,0.00012054,2]
[394911970,1764111040818,-927.36,0.00012054,2]
[394911972,1764111040827,-396.24485222,0.00012054,2]
[394911974,1764111040836,-1099.9,0.00012054,2]
[394911976,1764111040845,-500.0,0.00012054,2]
[394911978,1764111040855,-849.64,0.00012054,2]
[394911980,1764111040864,-897.96,0.00012054,2]
[394911982,1764111040874,-500.0,0.00012054,2]
[394911984,1764111040884,-702.47,0.00012054,2]
[394911986,1764111040893,-500.0,0.00012054,2]
[394911988,1764111040902,-500.0,0.00012054,2]
[394911990,1764111040911,-3623.68,0.00012054,2]
[394911992,1764111040920,-500.0,0.00012054,2]
[394911994,1764111040929,-500.0,0.00012054,2]
[394911996,1764111040939,-3492.0,0.00012054,2]
[394911997,1764111040948,-573.41,0.00012054,2]
[394911998,1764111040958,-500.0,0.00012054,2]
[394911999,1764111040967,-770.04,0.00012054,2]
[394912000,1764111040976,-500.0,0.00012054,2]
[394912001,1764111040985,-500.0,0.00012054,2]
[394912002,1764111040995,-500.0,0.00012054,2]
[394912003,1764111041004,-500.0,0.00012054,2]
[394912004,1764111041013,-720.55,0.00012054,2]
[394912005,1764111041023,-500.0,0.00012054,2]
[394912006,1764111041032,-500.0,0.00012054,2]
[394912007,1764111041041,-500.0,0.00012054,2]
[394912008,1764111041051,-500.0,0.00012054,2]
[394912009,1764111041060,-610.95,0.00012054,2]
[394912010,1764111041069,-561.56,0.00012054,2]
[394912011,1764111041079,-500.0,0.00012054,2]
[394912012,1764111041088,-500.0,0.00012054,2]
[394912013,1764111041097,-500.0,0.00012054,2]
[394912014,1764111041106,-872.56,0.00012054,2]
[394912015,1764111041115,-500.0,0.00012054,2]
[394912016,1764111041125,-500.0,0.00012054,2]
[394912017,1764111041134,-500.0,0.00012054,2]
[394912018,1764111041144,-500.0,0.00012054,2]
[394912019,1764111041153,-732.4,0.00012054,2]
[394912020,1764111041162,-500.0,0.00012054,2]
[394912021,1764111041172,-2395.33,0.00012054,2]
[394912022,1764111041182,-785.28,0.00012054,2]
[394912023,1764111041191,-500.0,0.00012054,2]
[394912024,1764111041201,-500.0,0.00012054,2]
[394912025,1764111041211,-530.7,0.00012054,2]
[394912026,1764111041220,-500.0,0.00012054,2]
[394912027,1764111041230,-500.0,0.00012054,2]
[394912028,1764111041243,-500.0,0.00012054,2]
[394912029,1764111041252,-1239.2,0.00012054,2]
[394912030,1764111041261,-916.3,0.00012054,2]
[394912031,1764111041271,-500.0,0.00012054,2]
[394912032,1764111041280,-635.04,0.00012054,2]
[394912033,1764111041289,-1208.12,0.00012054,2]
[394912034,1764111041298,-500.0,0.00012054,2]
[394912035,1764111041309,-914.18,0.00012054,2]
[394912036,1764111041318,-500.0,0.00012054,2]
[394912037,1764111041327,-877.29,0.00012054,2]
[394912038,1764111041336,-1968.44,0.00012054,2]
[394912039,1764111041346,-558.90158489,0.00012054,2]
[394912040,1764111041355,-619.62,0.00012054,2]
[394912041,1764111041366,-500.0,0.00012054,2]
[394912042,1764111041376,-500.0,0.00012054,2]
[394912043,1764111041386,-1411.67,0.00012054,2]
[394912044,1764111041396,-1474.4,0.00012054,2]
[394912045,1764111041406,-2633.69,0.00012054,2]
[394912046,1764111041416,-1314.58,0.00012054,2]
[394912047,1764111041426,-500.0,0.00012054,2]
[394912048,1764111041436,-585.33,0.00012054,2]
[394912049,1764111041446,-500.0,0.00012054,2]
[394912050,1764111041456,-500.0,0.00012054,2]
[394912051,1764111041467,-500.0,0.00012054,2]
[394912052,1764111041478,-695.08,0.00012054,2]
[394912053,1764111041490,-500.0,0.00012054,2]
[394912054,1764111041499,-921.42,0.00012054,2]
[394912055,1764111041509,-520.61,0.00012054,2]
[394912056,1764111041519,-500.0,0.00012054,2]
[394912057,1764111041529,-1286.66,0.00012054,2]
[394912058,1764111041538,-1185.33,0.00012054,2]
[394912059,1764111041547,-500.0,0.00012054,2]
[394912060,1764111041556,-642.41,0.00012054,2]
[394912061,1764111041565,-527.97,0.00012054,2]
[394912062,1764111041574,-500.0,0.00012054,2]
[394912063,1764111041583,-500.0,0.00012054,2]
[394912064,1764111041592,-2400.53,0.00012054,2]
[394912065,1764111041602,-475.56082332,0.00012054,2]
[394912066,1764111041611,-1243.78,0.00012054,2]
[394912067,1764111041622,-5912.43,0.00012054,2]
[394912068,1764111041631,-500.0,0.00012054,2]
[394912069,1764111041642,-1275.83,0.00012054,2]
[394912070,1764111041651,-500.0,0.00012054,2]
[394912071,1764111041662,-555.12,0.00012054,2]
[394912072,1764111041672,-500.0,0.00012054,2]
[394912073,1764111041682,-500.0,0.00012054,2]
[394912074,1764111041691,-611.83,0.00012054,2]
[394912075,1764111041700,-500.0,0.00012054,2]
[394912076,1764111041709,-500.0,0.00012054,2]
[394912077,1764111041719,-256.0176,0.00012054,2]
[394912078,1764111041729,-526.04,0.00012054,2]
[394912079,1764111041738,-500.0,0.00012054,2]
[394912080,1764111041747,-1015.51,0.00012054,2]
[394912081,1764111041756,-610.2,0.00012054,2]
[394912082,1764111041766,-500.0,0.00012054,2]
[394912083,1764111041776,-924.7,0.00012054,2]
[394912084,1764111041785,-500.0,0.00012054,2]
[394912085,1764111041794,-765.82,0.00012054,2]
[394912086,1764111041804,-500.0,0.00012054,2]
[394912087,1764111041813,-500.0,0.00012054,2]
[394912088,1764111041822,-500.0,0.00012054,2]
[394912089,1764111041832,-500.0,0.00012054,2]
[394912090,1764111041841,-749.46,0.00012054,2]
[394912091,1764111041850,-1524.38,0.00012054,2]
[394912092,1764111041860,-500.0,0.00012054,2]
[394912093,1764111041869,-500.0,0.00012054,2]
[394912094,1764111041878,-1342.85,0.00012054,2]
[394912095,1764111041888,-500.0,0.00012054,2]
[394912096,1764111041897,-500.0,0.00012054,2]
[394912097,1764111041906,-500.0,0.00012054,2]
[394912098,1764111041915,-1423.3254123,0.00012057,2]
[394912099,1764111041925,-914.92008594,0.00012093,2]
[394912100,1764111041934,-1500.0,0.00012093,2]
[394912101,1764111041944,-1008.79709345,0.00012093,2]
[394912102,1764111041953,-523.33490505,0.00012093,2]
[394912103,1764111041963,-151.0,0.00012104,2]
[394912104,1764111041975,-152.744835,0.00012104,2]
[394912105,1764111041984,-151.0,0.00012104,2]
[394912106,1764111041995,-151.0,0.00012104,2]
[394912107,1764111042006,-409.923735,0.00012104,2]
[394912108,1764111042016,-409.923735,0.00012104,2]
[394912109,1764111042027,-409.923735,0.00012104,2]
[394912110,1764111042037,-409.923735,0.00012104,2]
[394912111,1764111042047,-1500.0,0.00012104,2]
[394912112,1764111042056,-1500.0,0.00012104,2]
[394912113,1764111042066,-1019.8332411,0.00012104,2]
[394912114,1764111042076,-188.0,0.00012191,2]
[394912115,1764111042087,-194.72792766,0.00012192,2]
[394912116,1764111042097,-151.0,0.00012228,2]
[394912117,1764111042108,-213.995865,0.00012228,2]
[394912118,1764111042119,-213.995865,0.00012228,2]
[394912119,1764111042130,-213.995865,0.00012228,2]
[394912120,1764111042139,-213.995865,0.00012228,2]
[394912121,1764111042148,-250.0,0.0001223,2]
[394912122,1764111042158,-462.90605611,0.00012321,2]
[394912123,1764111042169,-500.0,0.00012328,2]
[394912124,1764111042179,-500.54866216,0.00012328,2]
[394912125,1764111042190,-339.53171178,0.00012328,2]
[394912126,1764111042199,-1339.09,0.00012328,2]
[394912127,1764111042208,-500.0,0.00012328,2]
[394912128,1764111042219,-678.46,0.00012328,2]
[394912129,1764111042233,-500.0,0.00012328,2]
[394912130,1764111042245,-639.2621746,0.00012328,2]
[394912131,1764111042255,-500.0,0.00012328,2]
[394912132,1764111042266,-500.0,0.00012328,2]
[394912133,1764111042279,-882.9,0.00012328,2]
[394912134,1764111042290,-500.0,0.00012328,2]
[394912135,1764111042300,-634.15,0.00012328,2]
[394912136,1764111042310,-500.0,0.00012328,2]
[394912137,1764111042322,-500.0,0.00012328,2]
[394912138,1764111042333,-500.0,0.00012328,2]
[394912139,1764111042343,-687.25,0.00012328,2]
[394912140,1764111042352,-554.36,0.00012328,2]
[394912141,1764111042362,-672.76,0.00012328,2]
[394912142,1764111042372,-240.08257602,0.00012328,2]
[394912143,1764111042382,-927.36,0.00012328,2]
[394912144,1764111042393,-1099.9,0.00012328,2]
[394912145,1764111042403,-459.88086939,0.00012328,2]
[394912146,1764111042414,-849.64,0.00012328,2]
[394912147,1764111042424,-897.96,0.00012328,2]
[394912148,1764111042435,-500.0,0.00012328,2]
[394912149,1764111042444,-702.47,0.00012328,2]
[394912150,1764111042453,-500.0,0.00012328,2]
[394912151,1764111042463,-500.0,0.00012328,2]
[394912152,1764111042473,-3623.68,0.00012328,2]
[394912153,1764111042482,-500.0,0.00012328,2]
[394912154,1764111042492,-500.0,0.00012328,2]
[394912155,1764111042501,-3492.0,0.00012328,2]
[394912156,1764111042511,-573.41,0.00012328,2]
[394912157,1764111042520,-627.03146146,0.00012328,2]
[394912158,1764111042531,-770.04,0.00012328,2]
[394912159,1764111042540,-500.0,0.00012328,2]
[394912160,1764111042550,-500.0,0.00012328,2]
[394912161,1764111042559,-500.0,0.00012328,2]
[394912162,1764111042568,-500.0,0.00012328,2]
[394912163,1764111042578,-500.0,0.00012328,2]
[394912164,1764111042588,-500.0,0.00012328,2]
[394912165,1764111042598,-500.0,0.00012328,2]
[394912166,1764111042608,-500.0,0.00012328,2]
[394912167,1764111042617,-610.95,0.00012328,2]
[394912168,1764111042628,-561.56,0.00012328,2]
[394912169,1764111042638,-500.0,0.00012328,2]
[394912170,1764111042648,-500.0,0.00012328,2]
[394912171,1764111042657,-500.0,0.00012328,2]
[394912172,1764111042667,-872.56,0.00012328,2]
[394912173,1764111042676,-500.0,0.00012328,2]
[394912174,1764111042686,-500.0,0.00012328,2]
[394912175,1764111042695,-500.0,0.00012328,2]
[394912176,1764111042705,-500.0,0.00012328,2]
[394912177,1764111042714,-732.4,0.00012328,2]
[394912178,1764111042724,-500.0,0.00012328,2]
[394912179,1764111042734,-2395.33,0.00012328,2]
[394912181,1764111042880,-785.28,0.00012328,2]
[394912183,1764111042890,-163.97447709,0.00012328,2]
[394912184,1764111042899,-500.0,0.00012328,2]
[394912185,1764111042907,-530.7,0.00012328,2]
[394912186,1764111042916,-500.0,0.00012328,2]
[394912187,1764111042925,-500.0,0.00012328,2]
[394912188,1764111042934,-500.0,0.00012328,2]
[394912189,1764111042943,-1239.2,0.00012328,2]
[394912190,1764111042951,-916.3,0.00012328,2]
[394912191,1764111042961,-524.60982951,0.00012328,2]
[394912192,1764111042970,-635.04,0.00012328,2]
[394912193,1764111042979,-1208.12,0.00012328,2]
[394912194,1764111042988,-500.0,0.00012328,2]
[394912195,1764111042997,-914.18,0.00012328,2]
[394912196,1764111043006,-500.0,0.00012328,2]
[394912197,1764111043015,-877.29,0.00012328,2]
[394912198,1764111043024,-1968.44,0.00012328,2]
[394912199,1764111043033,-619.62,0.00012328,2]
[394912200,1764111043043,-500.0,0.00012328,2]
[394912201,1764111043052,-500.0,0.00012328,2]
[394912202,1764111043061,-1411.67,0.00012328,2]
[394912203,1764111043070,-1474.4,0.00012328,2]
[394912204,1764111043079,-2633.69,0.00012328,2]
[394912205,1764111043088,-1314.58,0.00012328,2]
[394912206,1764111043097,-459.04032112,0.00012328,2]
[394912207,1764111043106,-585.33,0.00012328,2]
[394912208,1764111043115,-500.0,0.00012328,2]
[394912209,1764111043124,-500.0,0.00012328,2]
[394912210,1764111043133,-500.0,0.00012328,2]
[394912211,1764111043142,-695.08,0.00012328,2]
[394912212,1764111043151,-500.0,0.00012328,2]
[394912213,1764111043160,-921.42,0.00012328,2]
[394912214,1764111043169,-520.61,0.00012328,2]
[394912215,1764111043177,-500.0,0.00012328,2]
[394912216,1764111043187,-1286.66,0.00012328,2]
[394912217,1764111043195,-1185.33,0.00012328,2]
[394912218,1764111043204,-500.0,0.00012328,2]
[394912219,1764111043213,-642.41,0.00012328,2]
[394912220,1764111043223,-527.97,0.00012328,2]
[394912221,1764111043234,-500.0,0.00012328,2]
[394912222,1764111043248,-500.0,0.00012328,2]
[394912223,1764111043258,-2400.53,0.00012328,2]
[394912224,1764111043268,-1243.78,0.00012328,2]
[394912225,1764111043279,-5912.43,0.00012328,2]
[394912226,1764111043289,-500.0,0.00012328,2]
[394912227,1764111043298,-1275.83,0.00012328,2]
[394912228,1764111043307,-500.0,0.00012328,2]
[394912229,1764111043319,-555.12,0.00012328,2]
[394912230,1764111043332,-500.0,0.00012328,2]
[394912231,1764111043341,-500.0,0.00012328,2]
[394912232,1764111043350,-611.83,0.00012328,2]
[394912233,1764111043360,-500.0,0.00012328,2]
[394912234,1764111043369,-500.0,0.00012328,2]
[394912235,1764111043381,-526.04,0.00012328,2]
[394912236,1764111043390,-500.0,0.00012328,2]
[394912237,1764111043400,-1015.51,0.00012328,2]
[394912238,1764111043410,-610.2,0.00012328,2]
[394912239,1764111043422,-500.0,0.00012328,2]
[394912240,1764111043432,-924.7,0.00012328,2]
[394912241,1764111043441,-500.0,0.00012328,2]
[394912242,1764111043452,-765.82,0.00012328,2]
[394912243,1764111043462,-500.0,0.00012328,2]
[394912244,1764111043472,-500.0,0.00012328,2]
[394912245,1764111043481,-500.0,0.00012328,2]
[394912246,1764111043492,-500.0,0.00012328,2]
[394912247,1764111043502,-749.46,0.00012328,2]
[394912248,1764111043512,-1524.38,0.00012328,2]
[394912249,1764111043522,-500.0,0.00012328,2]
[394912250,1764111043532,-500.0,0.00012328,2]
[394912251,1764111043541,-1342.85,0.00012328,2]
[394912252,1764111043551,-500.0,0.00012328,2]
[394912253,1764111043560,-500.0,0.00012328,2]
[394912254,1764111043569,-500.0,0.00012328,2]
[394912255,1764111043579,-1423.3254123,0.0001233,2]
[394912256,1764111043589,-500.0,0.00012602,2]
[394912257,1764111043598,-1339.09,0.00012602,2]
[394912258,1764111043607,-500.0,0.00012602,2]
[394912259,1764111043616,-678.46,0.00012602,2]
[394912260,1764111043628,-500.0,0.00012602,2]
[394912261,1764111043638,-500.0,0.00012602,2]
[394912262,1764111043647,-500.0,0.00012602,2]
[394912263,1764111043657,-882.9,0.00012602,2]
[394912264,1764111043666,-500.0,0.00012602,2]
[394912265,1764111043676,-634.15,0.00012602,2]
[394912266,1764111043685,-500.0,0.00012602,2]
[394912267,1764111043694,-500.0,0.00012602,2]
[394912268,1764111043703,-500.0,0.00012602,2]
[394912269,1764111043712,-687.25,0.00012602,2]
[394912270,1764111043721,-554.36,0.00012602,2]
[394912271,1764111043731,-672.76,0.00012602,2]
[394912272,1764111043740,-927.36,0.00012602,2]
[394912273,1764111043749,-1099.9,0.00012602,2]
[394912274,1764111043759,-849.64,0.00012602,2]
[394912275,1764111043768,-897.96,0.00012602,2]
[394912276,1764111043777,-500.0,0.00012602,2]
[394912277,1764111043787,-702.47,0.00012602,2]
[394912278,1764111043796,-500.0,0.00012602,2]
[394912279,1764111043805,-500.0,0.00012602,2]
[394912280,1764111043815,-3623.68,0.00012602,2]
[394912281,1764111043824,-500.0,0.00012602,2]
[394912282,1764111043833,-549.63422299,0.00012602,2]
[394912283,1764111043842,-3492.0,0.00012602,2]
[394912284,1764111043851,-573.41,0.00012602,2]
[394912285,1764111043860,-770.04,0.00012602,2]
[394912286,1764111043870,-500.0,0.00012602,2]
[394912287,1764111043879,-269.31255312,0.00012602,2]
[394912288,1764111043888,-500.0,0.00012602,2]
[394912289,1764111043897,-340.36826603,0.00012602,2]
[394912290,1764111043906,-500.0,0.00012602,2]
[394912291,1764111043915,-500.0,0.00012602,2]
[394912292,1764111043925,-500.0,0.00012602,2]
[394912293,1764111043934,-500.0,0.00012602,2]
[394912294,1764111043943,-610.95,0.00012602,2]
[394912295,1764111043952,-561.56,0.00012602,2]
[394912296,1764111043962,-500.0,0.00012602,2]
[394912297,1764111043971,-500.0,0.00012602,2]
[394912298,1764111043980,-500.0,0.00012602,2]
[394912299,1764111043989,-872.56,0.00012602,2]
[394912300,1764111043998,-318.27567701,0.00012602,2]
[394912301,1764111044007,-500.0,0.00012602,2]
[394912303,1764111044016,-500.0,0.00012602,2]
[394912305,1764111044025,-553.68,0.00012602,2]
[394912307,1764111044034,-732.4,0.00012602,2]
[394912309,1764111044043,-608.06307713,0.00012602,2]
[394912311,1764111044052,-151.0,0.00012602,2]
[394912312,1764111044061,-2395.33,0.00012602,2]
[394912313,1764111044071,-785.28,0.00012602,2]
[394912314,1764111044080,-500.0,0.00012602,2]
[394912317,1764111044089,-530.7,0.00012602,2]
[394912320,1764111044098,-500.0,0.00012602,2]
[394912322,1764111044108,-500.0,0.00012602,2]
[394912323,1764111044117,-500.0,0.00012602,2]
[394912325,1764111044126,-1239.2,0.00012602,2]
[394912327,1764111044136,-916.3,0.00012602,2]
[394912329,1764111044145,-635.04,0.00012602,2]
[394912331,1764111044155,-213.995865,0.00012602,2]
[394912332,1764111044164,-1208.12,0.00012602,2]
[394912334,1764111044173,-213.995865,0.00012602,2]
[394912336,1764111044182,-213.995865,0.00012602,2]
[394912338,1764111044193,-500.0,0.00012602,2]
[394912340,1764111044202,-213.99585839,0.00012602,2]
[394912342,1764111044211,-914.18,0.00012602,2]
[394912344,1764111044220,-500.0,0.00012602,2]
[394912345,1764111044231,-151.0,0.00012602,2]
[394912347,1764111044245,-877.29,0.00012602,2]
[394912349,1764111044254,-1968.44,0.00012602,2]
[394912351,1764111044263,-151.0,0.00012602,2]
[394912353,1764111044272,-619.62,0.00012602,2]
[394912355,1764111044283,-228.317152,0.00012602,2]
[394912357,1764111044292,-500.0,0.00012602,2]
[394912359,1764111044302,-312.92180025,0.00012602,2]
[394912361,1764111044313,-409.923735,0.00012602,2]
[394912363,1764111044322,-1411.67,0.00012602,2]
[394912365,1764111044331,-409.923735,0.00012602,2]
[394912367,1764111044341,-1474.4,0.00012602,2]
[394912369,1764111044350,-409.923735,0.00012602,2]
[394912371,1764111044359,-409.923739,0.00012602,2]
[394912373,1764111044368,-2633.69,0.00012602,2]
[394912375,1764111044377,-1314.58,0.00012602,2]
[394912377,1764111044386,-585.33,0.00012602,2]
[394912379,1764111044395,-500.0,0.00012602,2]
[394912381,1764111044404,-530.93340343,0.00012602,2]
[394912383,1764111044413,-500.0,0.00012602,2]
[394912385,1764111044422,-695.08,0.00012602,2]
[394912387,1764111044431,-500.0,0.00012602,2]
[394912389,1764111044440,-921.42,0.00012602,2]
[394912391,1764111044449,-520.61,0.00012602,2]
[394912393,1764111044458,-500.0,0.00012602,2]